[Event "*** Titled Tuesday 3|2 Blitz"]
[Site "Chess.com"]
[Date "2015.11.03"]
[Round "2"]
[White "oggy1984"]
[Black "FrankieJay"]
[Result "1-0"]
[WhiteElo "2274"]
[BlackElo "2159"]
[TimeControl "180+2"]
[EndTime "11:18:50 PST"]
[Termination "oggy1984 won by resignation"]

1. d4 {[%clk 0:03:01.1]} 1... d5 {[%clk 0:02:58.8]} 2. c4 {[%clk 0:02:59.4]}
2... c6 {[%clk 0:03:00.1]} 3. Nf3 {[%clk 0:02:59.4]} 3... Nf6 {[%clk 0:03:01.2]}
4. Nc3 {[%clk 0:02:59.7]} 4... a6 {[%clk 0:03:02.2]} 5. c5 {[%clk 0:02:58.5]}
5... Bf5 {[%clk 0:03:01.4]} 6. Bf4 {[%clk 0:02:58.2]} 6... Nbd7 {[%clk
0:02:51.3]} 7. e3 {[%clk 0:02:57.5]} 7... g6 {[%clk 0:02:48]} 8. b4 {[%clk
0:02:48.9]} 8... Bg7 {[%clk 0:02:47.3]} 9. Be2 {[%clk 0:02:47.8]} 9... O-O
{[%clk 0:02:45.6]} 10. O-O {[%clk 0:02:47.5]} 10... Ne4 {[%clk 0:02:43.1]} 11.
Qb3 {[%clk 0:02:43]} 11... Bg4 {[%clk 0:02:27.5]} 12. Rfd1 {[%clk 0:02:36.8]}
12... Bxf3 {[%clk 0:02:22.6]} 13. Bxf3 {[%clk 0:02:34.1]} 13... Nxc3 {[%clk
0:02:22.4]} 14. Qxc3 {[%clk 0:02:33.9]} 14... e5 {[%clk 0:02:01.5]} 15. dxe5
{[%clk 0:02:20.7]} 15... Qe7 {[%clk 0:01:46.8]} 16. Rab1 {[%clk 0:02:16.7]}
16... Nxe5 {[%clk 0:01:39.2]} 17. Bxe5 {[%clk 0:02:17.2]} 17... Bxe5 {[%clk
0:01:39.8]} 18. Qc2 {[%clk 0:02:11.4]} 18... Qf6 {[%clk 0:01:25.4]} 19. a4
{[%clk 0:02:06]} 19... Rfe8 {[%clk 0:01:24.1]} 20. b5 {[%clk 0:02:03.4]} 20...
axb5 {[%clk 0:01:23.9]} 21. axb5 {[%clk 0:02:03.6]} 21... Ra5 {[%clk 0:00:59.1]}
22. bxc6 {[%clk 0:02:02.7]} 22... bxc6 {[%clk 0:01:01]} 23. Rb6 {[%clk
0:01:47.4]} 23... Rea8 {[%clk 0:00:57.7]} 24. Bxd5 {[%clk 0:01:35.2]} 24... Ra2
{[%clk 0:00:43.6]} 25. Bxa2 {[%clk 0:01:30.8]} 1-0

[Event "*** Titled Tuesday 3|2 Blitz"]
[Site "Chess.com"]
[Date "2015.11.03"]
[Round "2"]
[White "Aygehovit1992"]
[Black "jup1978"]
[Result "1-0"]
[WhiteElo "2480"]
[BlackElo "2197"]
[TimeControl "180+2"]
[EndTime "11:19:31 PST"]
[Termination "Aygehovit1992 won by resignation"]

1. e4 {[%clk 0:03:01.9]} 1... e5 {[%clk 0:02:59.6]} 2. Nf3 {[%clk 0:03:03.1]}
2... Nc6 {[%clk 0:03:00.8]} 3. Bb5 {[%clk 0:03:04.3]} 3... Bc5 {[%clk
0:03:02.2]} 4. d3 {[%clk 0:03:03]} 4... Nd4 {[%clk 0:02:55.7]} 5. Nxd4 {[%clk
0:03:02.9]} 5... Bxd4 {[%clk 0:02:57.6]} 6. O-O {[%clk 0:03:04]} 6... c6 {[%clk
0:02:58.4]} 7. Ba4 {[%clk 0:03:04.2]} 7... d6 {[%clk 0:02:58.9]} 8. c3 {[%clk
0:03:05.2]} 8... Bb6 {[%clk 0:02:59.9]} 9. Nd2 {[%clk 0:03:06.2]} 9... Nf6
{[%clk 0:03:00.1]} 10. Bc2 {[%clk 0:03:04.5]} 10... O-O {[%clk 0:03:00.6]} 11.
a4 {[%clk 0:03:02.5]} 11... h6 {[%clk 0:02:59.2]} 12. Nc4 {[%clk 0:03:01.3]}
12... Bc7 {[%clk 0:02:59.8]} 13. d4 {[%clk 0:03:02.7]} 13... Re8 {[%clk
0:02:57.7]} 14. dxe5 {[%clk 0:03:02.7]} 14... dxe5 {[%clk 0:02:58.3]} 15. Qe2
{[%clk 0:03:04.2]} 15... Be6 {[%clk 0:02:55.5]} 16. b3 {[%clk 0:03:03.6]} 16...
Qe7 {[%clk 0:02:55.4]} 17. Ba3 {[%clk 0:03:04.1]} 17... Bxc4 {[%clk 0:02:49.7]}
18. Qxc4 {[%clk 0:03:04.4]} 18... Bd6 {[%clk 0:02:50.6]} 19. Bxd6 {[%clk
0:02:56.2]} 19... Qxd6 {[%clk 0:02:52.5]} 20. Rad1 {[%clk 0:02:57]} 20... Qe6
{[%clk 0:02:53.8]} 21. Qxe6 {[%clk 0:02:57.4]} 21... Rxe6 {[%clk 0:02:55.5]} 22.
b4 {[%clk 0:02:57.7]} 22... Ree8 {[%clk 0:02:54.5]} 23. f3 {[%clk 0:02:58.8]}
23... Red8 {[%clk 0:02:52.4]} 24. a5 {[%clk 0:02:58.9]} 24... Kf8 {[%clk
0:02:51]} 25. Kf2 {[%clk 0:02:59.6]} 25... Ke7 {[%clk 0:02:52]} 26. Ke3 {[%clk
0:03:00.8]} 26... Rxd1 {[%clk 0:02:52.6]} 27. Rxd1 {[%clk 0:03:01.2]} 27... Rd8
{[%clk 0:02:54.5]} 28. Ra1 {[%clk 0:03:00.1]} 28... Nd7 {[%clk 0:02:43.8]} 29.
Bb3 {[%clk 0:02:57.7]} 29... f6 {[%clk 0:02:44.1]} 30. h4 {[%clk 0:02:57.9]}
30... Nf8 {[%clk 0:02:40.3]} 31. h5 {[%clk 0:02:58.6]} 31... Ne6 {[%clk
0:02:39.2]} 32. g3 {[%clk 0:02:54.7]} 32... a6 {[%clk 0:02:40]} 33. f4 {[%clk
0:02:49.8]} 33... Nc7 {[%clk 0:02:38.2]} 34. Rf1 {[%clk 0:02:36.7]} 34... Rf8
{[%clk 0:02:33.2]} 35. Bc4 {[%clk 0:02:24.7]} 35... Ne6 {[%clk 0:02:23.2]} 36.
Be2 {[%clk 0:02:04.9]} 36... Nc7 {[%clk 0:02:21.3]} 37. fxe5 {[%clk 0:01:51.4]}
37... fxe5 {[%clk 0:02:23.2]} 38. Rxf8 {[%clk 0:01:52.7]} 38... Kxf8 {[%clk
0:02:24.2]} 39. c4 {[%clk 0:01:54.3]} 39... Ke7 {[%clk 0:02:23.7]} 40. Bg4
{[%clk 0:01:55.1]} 40... Ne6 {[%clk 0:02:20.1]} 41. Bxe6 {[%clk 0:01:56.1]}
41... Kxe6 {[%clk 0:02:22]} 42. Kf3 {[%clk 0:01:38.5]} 42... Kf6 {[%clk
0:02:11]} 43. Kg4 {[%clk 0:01:39.6]} 43... Ke6 {[%clk 0:02:11.9]} 44. Kh4 {[%clk
0:01:39.6]} 44... Kf6 {[%clk 0:02:13.3]} 45. g4 {[%clk 0:01:41]} 45... Ke6
{[%clk 0:02:14.5]} 46. g5 {[%clk 0:01:41.9]} 46... Kf7 {[%clk 0:02:15.4]} 47.
Kg4 {[%clk 0:01:41.6]} 47... Ke6 {[%clk 0:02:04.3]} 48. c5 {[%clk 0:01:41.5]}
1-0

[Event "*** Titled Tuesday 3|2 Blitz"]
[Site "Chess.com"]
[Date "2015.11.03"]
[Round "2"]
[White "HansCoolNiemann"]
[Black "NMJeevanK"]
[Result "1-0"]
[WhiteElo "2135"]
[BlackElo "2220"]
[TimeControl "180+2"]
[EndTime "11:19:31 PST"]
[Termination "HansCoolNiemann won by resignation"]

1. d4 {[%clk 0:02:56.8]} 1... d5 {[%clk 0:02:59.2]} 2. c4 {[%clk 0:02:50.4]}
2... c6 {[%clk 0:02:59.4]} 3. Nf3 {[%clk 0:02:50.5]} 3... Nf6 {[%clk 0:03:00.5]}
4. e3 {[%clk 0:02:51.3]} 4... e6 {[%clk 0:03:00.8]} 5. Nbd2 {[%clk 0:02:52]}
5... Bb4 {[%clk 0:03:01.2]} 6. Bd3 {[%clk 0:02:53.2]} 6... O-O {[%clk
0:03:00.9]} 7. a3 {[%clk 0:02:53.4]} 7... Bxd2+ {[%clk 0:03:01.6]} 8. Bxd2
{[%clk 0:02:55.3]} 8... Nbd7 {[%clk 0:03:02.8]} 9. O-O {[%clk 0:02:55.4]} 9...
Qc7 {[%clk 0:03:04.1]} 10. cxd5 {[%clk 0:02:56.4]} 10... exd5 {[%clk 0:03:04.9]}
11. Qc2 {[%clk 0:02:57.1]} 11... Re8 {[%clk 0:03:04.2]} 12. b4 {[%clk
0:02:57.5]} 12... Ne4 {[%clk 0:03:05.2]} 13. b5 {[%clk 0:02:57.3]} 13... Ndf6
{[%clk 0:03:05.1]} 14. bxc6 {[%clk 0:02:56]} 14... bxc6 {[%clk 0:03:06]} 15. Ne5
{[%clk 0:02:57.9]} 15... Bd7 {[%clk 0:03:03.7]} 16. Be1 {[%clk 0:02:52.4]} 16...
Rxe5 {[%clk 0:02:58.7]} 17. dxe5 {[%clk 0:02:51.7]} 17... Qxe5 {[%clk
0:02:59.9]} 18. Rc1 {[%clk 0:02:46.4]} 18... Ng4 {[%clk 0:02:54.9]} 19. g3
{[%clk 0:02:42.4]} 19... Qh5 {[%clk 0:02:54.5]} 20. h4 {[%clk 0:02:27.6]} 20...
Ne5 {[%clk 0:02:55.4]} 21. Bxe4 {[%clk 0:02:26.4]} 21... dxe4 {[%clk 0:02:54.7]}
22. Qxe4 {[%clk 0:02:26.9]} 22... Be6 {[%clk 0:02:43.2]} 23. f4 {[%clk
0:02:09.4]} 23... Ng6 {[%clk 0:02:00.6]} 24. Qxc6 {[%clk 0:02:03]} 24... Rf8
{[%clk 0:01:33.4]} 25. f5 {[%clk 0:01:57.5]} 25... Bxf5 {[%clk 0:01:23.1]} 26.
Rc5 {[%clk 0:01:42.3]} 26... Be4 {[%clk 0:01:15.7]} 27. Rxh5 {[%clk 0:01:38.5]}
27... Bxc6 {[%clk 0:01:16.1]} 28. Rc5 {[%clk 0:01:38.3]} 28... Be4 {[%clk
0:01:14.6]} 29. Bb4 {[%clk 0:01:37.4]} 29... Re8 {[%clk 0:01:13.9]} 30. Rfc1
{[%clk 0:01:35.9]} 30... f5 {[%clk 0:00:47.5]} 31. Rc8 {[%clk 0:01:34.9]} 31...
Kf7 {[%clk 0:00:47.5]} 32. R1c7+ {[%clk 0:01:31.4]} 32... Re7 {[%clk 0:00:44.9]}
33. Bxe7 {[%clk 0:01:31]} 33... Nxe7 {[%clk 0:00:46]} 34. Rxa7 {[%clk
0:01:32.9]} 1-0

[Event "*** Titled Tuesday 3|2 Blitz"]
[Site "Chess.com"]
[Date "2015.11.03"]
[Round "2"]
[White "Er_is_geen_hoop_meer"]
[Black "JammyDodger91"]
[Result "1-0"]
[WhiteElo "2420"]
[BlackElo "2222"]
[TimeControl "180+2"]
[EndTime "11:19:55 PST"]
[Termination "Er_is_geen_hoop_meer won by checkmate"]

1. d4 {[%clk 0:02:55.2]} 1... d5 {[%clk 0:02:58.8]} 2. c4 {[%clk 0:02:55.3]}
2... e6 {[%clk 0:02:59.9]} 3. Nf3 {[%clk 0:02:56.1]} 3... c5 {[%clk 0:03:01.4]}
4. cxd5 {[%clk 0:02:57]} 4... exd5 {[%clk 0:03:03.3]} 5. g3 {[%clk 0:02:58.4]}
5... Nc6 {[%clk 0:03:04.5]} 6. Bg2 {[%clk 0:02:59.3]} 6... Nf6 {[%clk 0:03:06]}
7. O-O {[%clk 0:03:00.3]} 7... Be7 {[%clk 0:03:07.6]} 8. Nc3 {[%clk 0:03:01.5]}
8... O-O {[%clk 0:03:08.1]} 9. dxc5 {[%clk 0:03:02.9]} 9... Bxc5 {[%clk
0:03:09]} 10. Na4 {[%clk 0:03:03.4]} 10... Be7 {[%clk 0:03:03.5]} 11. Be3 {[%clk
0:03:04.5]} 11... Bg4 {[%clk 0:02:59]} 12. Rc1 {[%clk 0:03:02.6]} 12... Re8
{[%clk 0:02:57.8]} 13. Re1 {[%clk 0:02:55.4]} 13... Bb4 {[%clk 0:02:57.1]} 14.
Bd2 {[%clk 0:02:55.1]} 14... Bf8 {[%clk 0:02:55.9]} 15. Bg5 {[%clk 0:02:51.2]}
15... d4 {[%clk 0:02:55.5]} 16. Nc5 {[%clk 0:02:43.9]} 16... Bxc5 {[%clk
0:02:55.2]} 17. Rxc5 {[%clk 0:02:44.2]} 17... h6 {[%clk 0:02:56.6]} 18. Bf4
{[%clk 0:02:37.5]} 18... Qb6 {[%clk 0:02:52.4]} 19. Qc1 {[%clk 0:02:35.4]} 19...
d3 {[%clk 0:02:46.6]} 20. exd3 {[%clk 0:02:29.3]} 20... Bxf3 {[%clk 0:02:47.9]}
21. Rxe8+ {[%clk 0:02:29.9]} 21... Rxe8 {[%clk 0:02:48.8]} 22. Bxf3 {[%clk
0:02:31.8]} 22... Nd4 {[%clk 0:02:48.1]} 23. Kg2 {[%clk 0:02:22.7]} 23... Nxf3
{[%clk 0:01:47]} 24. Kxf3 {[%clk 0:02:24.6]} 24... Qd8 {[%clk 0:01:48.3]} 25.
Qc4 {[%clk 0:02:17.8]} 25... b6 {[%clk 0:01:38.3]} 26. Rc7 {[%clk 0:02:17.7]}
26... Nd5 {[%clk 0:01:33.3]} 27. Rxa7 {[%clk 0:02:13.6]} 27... g5 {[%clk
0:01:16.9]} 28. Bd2 {[%clk 0:01:49.4]} 28... Qf6+ {[%clk 0:01:16.8]} 29. Kg2
{[%clk 0:01:48.8]} 29... Re2 {[%clk 0:01:17.4]} 30. Qxd5 {[%clk 0:01:26.9]}
30... Qxf2+ {[%clk 0:00:54]} 31. Kh3 {[%clk 0:01:28]} 31... Rxd2 {[%clk
0:00:28.7]} 32. Ra8+ {[%clk 0:01:27.8]} 32... Kg7 {[%clk 0:00:22.1]} 33. Qe5+
{[%clk 0:01:28.2]} 33... f6 {[%clk 0:00:17.5]} 34. Qe7+ {[%clk 0:01:28.2]} 34...
Kg6 {[%clk 0:00:18.8]} 35. Qe8+ {[%clk 0:01:29.4]} 35... Kf5 {[%clk 0:00:14.9]}
36. Qe4# {[%clk 0:01:29.8]} 1-0

[Event "*** Titled Tuesday 3|2 Blitz"]
[Site "Chess.com"]
[Date "2015.11.03"]
[Round "2"]
[White "GrigorGrigorov"]
[Black "spectralsoul"]
[Result "1/2-1/2"]
[WhiteElo "2437"]
[BlackElo "2478"]
[TimeControl "180+2"]
[EndTime "11:20:00 PST"]
[Termination "Game drawn by agreement"]

1. d4 {[%clk 0:03:01.9]} 1... d6 {[%clk 0:02:58.9]} 2. Nf3 {[%clk 0:03:02.5]}
2... Bg4 {[%clk 0:02:58.9]} 3. e4 {[%clk 0:03:01.3]} 3... Nd7 {[%clk 0:02:59.3]}
4. Be2 {[%clk 0:02:57.2]} 4... e5 {[%clk 0:02:54]} 5. c3 {[%clk 0:02:55.9]} 5...
Ngf6 {[%clk 0:02:54.2]} 6. Nbd2 {[%clk 0:02:56]} 6... Be7 {[%clk 0:02:53.6]} 7.
O-O {[%clk 0:02:56.3]} 7... O-O {[%clk 0:02:55]} 8. Re1 {[%clk 0:02:57.1]} 8...
c6 {[%clk 0:02:54.3]} 9. Bd3 {[%clk 0:02:53.9]} 9... Qc7 {[%clk 0:02:52.6]} 10.
Nf1 {[%clk 0:02:54.3]} 10... Rfe8 {[%clk 0:02:49]} 11. h3 {[%clk 0:02:54.1]}
11... Bh5 {[%clk 0:02:47.8]} 12. Ng3 {[%clk 0:02:54.6]} 12... Bg6 {[%clk
0:02:49.4]} 13. Bg5 {[%clk 0:02:43.4]} 13... h6 {[%clk 0:02:47.9]} 14. Be3
{[%clk 0:02:42.7]} 14... Bf8 {[%clk 0:02:46]} 15. Qc2 {[%clk 0:02:42.5]} 15...
b5 {[%clk 0:02:37.6]} 16. a4 {[%clk 0:02:38.5]} 16... a6 {[%clk 0:02:39.1]} 17.
b4 {[%clk 0:02:31]} 17... Qb7 {[%clk 0:02:26.3]} 18. Nd2 {[%clk 0:02:23.6]}
18... d5 {[%clk 0:02:23.3]} 19. f4 {[%clk 0:02:03.9]} 19... exd4 {[%clk
0:02:17.6]} 20. Bxd4 {[%clk 0:02:04.5]} 20... dxe4 {[%clk 0:02:16.3]} 21. Ndxe4
{[%clk 0:02:05.1]} 21... Nxe4 {[%clk 0:02:12.6]} 22. Bxe4 {[%clk 0:02:00.5]}
22... Bxe4 {[%clk 0:02:08.6]} 23. Nxe4 {[%clk 0:02:01.2]} 23... c5 {[%clk
0:02:05.5]} 24. bxc5 {[%clk 0:01:54.3]} 24... Qc6 {[%clk 0:02:06.4]} 25. axb5
{[%clk 0:01:52.2]} 25... axb5 {[%clk 0:02:05.7]} 26. Rxa8 {[%clk 0:01:52.5]}
26... Rxa8 {[%clk 0:02:07.6]} 27. Qf2 {[%clk 0:01:49.8]} 27... Rc8 {[%clk
0:01:58.2]} 28. f5 {[%clk 0:01:47.7]} 28... Nxc5 {[%clk 0:01:55.7]} 29. Qf3
{[%clk 0:01:11.7]} 29... Nxe4 {[%clk 0:01:51.8]} 30. Qxe4 {[%clk 0:01:10.8]}
30... Qxe4 {[%clk 0:01:40]} 31. Rxe4 {[%clk 0:01:11.1]} 31... f6 {[%clk
0:01:38.7]} 32. Kf2 {[%clk 0:01:08.8]} 32... Kf7 {[%clk 0:01:36.3]} 33. Kf3
{[%clk 0:01:08.7]} 33... Rc4 {[%clk 0:01:27.7]} 34. g4 {[%clk 0:01:06.5]} 34...
b4 {[%clk 0:01:26.4]} 35. cxb4 {[%clk 0:01:06.3]} 35... Rxb4 {[%clk 0:01:26.7]}
36. Be3 {[%clk 0:01:07.5]} 36... Rb3 {[%clk 0:01:25.5]} 37. Rc4 {[%clk
0:01:05.5]} 37... Bd6 {[%clk 0:01:24.8]} 38. h4 {[%clk 0:01:03.9]} 38... Rb5
{[%clk 0:01:14.3]} 39. h5 {[%clk 0:01:01]} 39... Rb3 {[%clk 0:01:04.1]} 40. Ke4
{[%clk 0:01:01.5]} 40... Rb4 {[%clk 0:01:05.3]} 41. Rxb4 {[%clk 0:01:01.5]}
41... Bxb4 {[%clk 0:01:07.2]} 42. Kd5 {[%clk 0:01:03]} 1/2-1/2

[Event "*** Titled Tuesday 3|2 Blitz"]
[Site "Chess.com"]
[Date "2015.11.03"]
[Round "2"]
[White "BIG_Pirate"]
[Black "kikydu96"]
[Result "0-1"]
[WhiteElo "2259"]
[BlackElo "2255"]
[TimeControl "180+2"]
[EndTime "11:20:06 PST"]
[Termination "kikydu96 won by resignation"]

1. Nf3 {[%clk 0:03:01.9]} 1... Nf6 {[%clk 0:03:00.5]} 2. c4 {[%clk 0:03:02.9]}
2... c6 {[%clk 0:03:01.4]} 3. Nc3 {[%clk 0:03:01.1]} 3... d5 {[%clk 0:03:02.2]}
4. d4 {[%clk 0:03:02.2]} 4... dxc4 {[%clk 0:03:03]} 5. a4 {[%clk 0:03:02.3]}
5... Bg4 {[%clk 0:03:04]} 6. Ne5 {[%clk 0:03:01.8]} 6... Bh5 {[%clk 0:03:05.5]}
7. Nxc4 {[%clk 0:02:59.1]} 7... e6 {[%clk 0:03:04.2]} 8. Bg5 {[%clk 0:02:38.9]}
8... h6 {[%clk 0:03:02.7]} 9. Bh4 {[%clk 0:02:39]} 9... g5 {[%clk 0:03:01]} 10.
Bg3 {[%clk 0:02:39.7]} 10... Bb4 {[%clk 0:03:01.4]} 11. Qb3 {[%clk 0:02:24.9]}
11... a5 {[%clk 0:02:54.5]} 12. e3 {[%clk 0:02:25.3]} 12... Ne4 {[%clk
0:02:46.4]} 13. Bd3 {[%clk 0:02:25.4]} 13... Bg6 {[%clk 0:02:45.3]} 14. Qc2
{[%clk 0:02:23.1]} 14... Nxg3 {[%clk 0:02:45.4]} 15. hxg3 {[%clk 0:02:20.6]}
15... Bxd3 {[%clk 0:02:46.1]} 16. Qxd3 {[%clk 0:02:22.5]} 16... Nd7 {[%clk
0:02:45.6]} 17. Ke2 {[%clk 0:02:14.6]} 17... Qe7 {[%clk 0:02:42]} 18. g4 {[%clk
0:02:12.7]} 18... O-O-O {[%clk 0:02:42.6]} 19. Rac1 {[%clk 0:01:50.4]} 19... Kb8
{[%clk 0:02:34.8]} 20. Rhd1 {[%clk 0:01:15.1]} 20... e5 {[%clk 0:02:24.2]} 21.
d5 {[%clk 0:01:12.6]} 21... Nc5 {[%clk 0:02:21.2]} 22. Qf5 {[%clk 0:00:58.3]}
22... Nb3 {[%clk 0:02:09]} 23. Rc2 {[%clk 0:00:51.3]} 23... Nd4+ {[%clk
0:01:58]} 24. exd4 {[%clk 0:00:49.4]} 24... exd4+ {[%clk 0:01:59]} 25. Kf1
{[%clk 0:00:43.7]} 25... dxc3 {[%clk 0:01:54.4]} 26. bxc3 {[%clk 0:00:44.5]}
26... cxd5 {[%clk 0:01:38]} 27. Rxd5 {[%clk 0:00:35.5]} 27... Rxd5 {[%clk
0:01:32.5]} 28. Qxd5 {[%clk 0:00:36.4]} 28... Rd8 {[%clk 0:01:34]} 29. Qe5+
{[%clk 0:00:36.9]} 29... Qxe5 {[%clk 0:01:34.1]} 30. Nxe5 {[%clk 0:00:38.8]}
30... Rc8 {[%clk 0:01:25.7]} 31. Nxf7 {[%clk 0:00:37]} 31... Rxc3 {[%clk
0:01:25.2]} 32. Rxc3 {[%clk 0:00:37.9]} 32... Bxc3 {[%clk 0:01:26.5]} 33. Nxh6
{[%clk 0:00:39.8]} 33... b5 {[%clk 0:01:27.6]} 34. Ke2 {[%clk 0:00:36.7]} 34...
bxa4 {[%clk 0:01:28]} 35. Kd3 {[%clk 0:00:38]} 35... Bg7 {[%clk 0:01:23.9]} 36.
Nf7 {[%clk 0:00:38.5]} 36... a3 {[%clk 0:01:24.8]} 0-1

[Event "*** Titled Tuesday 3|2 Blitz"]
[Site "Chess.com"]
[Date "2015.11.03"]
[Round "2"]
[White "3f32"]
[Black "stefanodinn"]
[Result "1-0"]
[WhiteElo "2283"]
[BlackElo "2123"]
[TimeControl "180+2"]
[EndTime "11:20:09 PST"]
[Termination "3f32 won by checkmate"]

1. d4 {[%clk 0:03:01.9]} 1... Nf6 {[%clk 0:02:54.9]} 2. c4 {[%clk 0:03:01.1]}
2... c5 {[%clk 0:02:55.4]} 3. d5 {[%clk 0:02:55.6]} 3... g6 {[%clk 0:02:54.1]}
4. Nc3 {[%clk 0:02:53.4]} 4... Bg7 {[%clk 0:02:54.8]} 5. e4 {[%clk 0:02:53.5]}
5... O-O {[%clk 0:02:55.2]} 6. Bd3 {[%clk 0:02:42.4]} 6... d6 {[%clk 0:02:53.2]}
7. h3 {[%clk 0:02:37]} 7... e6 {[%clk 0:02:36.7]} 8. Bg5 {[%clk 0:02:32.3]} 8...
h6 {[%clk 0:02:35.8]} 9. Bd2 {[%clk 0:02:27.1]} 9... exd5 {[%clk 0:02:35.9]} 10.
exd5 {[%clk 0:02:27.8]} 10... a6 {[%clk 0:02:22]} 11. a4 {[%clk 0:02:20]} 11...
Nbd7 {[%clk 0:02:17.1]} 12. Nf3 {[%clk 0:02:15.8]} 12... Re8+ {[%clk 0:02:17]}
13. Kf1 {[%clk 0:02:16.2]} 13... Ne5 {[%clk 0:02:16.8]} 14. Nxe5 {[%clk
0:02:16.6]} 14... Rxe5 {[%clk 0:02:17]} 15. f4 {[%clk 0:02:17.4]} 15... Re8
{[%clk 0:02:10.9]} 16. g4 {[%clk 0:02:12.8]} 16... Bd7 {[%clk 0:01:49.4]} 17.
Kg2 {[%clk 0:01:59.3]} 17... h5 {[%clk 0:01:23.5]} 18. f5 {[%clk 0:01:50.6]}
18... hxg4 {[%clk 0:01:09.8]} 19. hxg4 {[%clk 0:01:47.4]} 19... Qc8 {[%clk
0:00:26.3]} 20. Qf3 {[%clk 0:01:45.3]} 20... b5 {[%clk 0:00:09.8]} 21. axb5
{[%clk 0:01:36.7]} 21... axb5 {[%clk 0:00:10]} 22. Rxa8 {[%clk 0:01:28.2]} 22...
Qxa8 {[%clk 0:00:10.1]} 23. cxb5 {[%clk 0:01:29.5]} 23... c4 {[%clk 0:00:08.2]}
24. Bxc4 {[%clk 0:01:28.9]} 24... gxf5 {[%clk 0:00:05.8]} 25. g5 {[%clk
0:01:26.3]} 25... Ne4 {[%clk 0:00:03.9]} 26. Nxe4 {[%clk 0:01:25]} 26... fxe4
{[%clk 0:00:04.4]} 27. Qh5 {[%clk 0:01:22.2]} 27... Qa4 {[%clk 0:00:03.6]} 28.
Qh7+ {[%clk 0:01:15.5]} 28... Kf8 {[%clk 0:00:03.7]} 29. Bc3 {[%clk 0:01:11.8]}
29... Bxc3 {[%clk 0:00:02]} 30. bxc3 {[%clk 0:01:13.7]} 30... Qxc4 {[%clk
0:00:02]} 31. Qh8+ {[%clk 0:01:13.9]} 31... Ke7 {[%clk 0:00:02.2]} 32. Qf6+
{[%clk 0:01:15.6]} 32... Kf8 {[%clk 0:00:03.2]} 33. Rh8# {[%clk 0:01:17.3]} 1-0

[Event "*** Titled Tuesday 3|2 Blitz"]
[Site "Chess.com"]
[Date "2015.11.03"]
[Round "2"]
[White "TomsKantans"]
[Black "wanyaland"]
[Result "1-0"]
[WhiteElo "2275"]
[BlackElo "2243"]
[TimeControl "180+2"]
[EndTime "11:20:28 PST"]
[Termination "TomsKantans won by resignation"]

1. e4 {[%clk 0:03:01.9]} 1... c5 {[%clk 0:02:48]} 2. Nf3 {[%clk 0:03:02.1]} 2...
d6 {[%clk 0:02:49.9]} 3. d4 {[%clk 0:03:02.4]} 3... cxd4 {[%clk 0:02:34.4]} 4.
Nxd4 {[%clk 0:03:04.3]} 4... Nf6 {[%clk 0:02:22.1]} 5. Nc3 {[%clk 0:03:03.9]}
5... a6 {[%clk 0:02:23]} 6. Be3 {[%clk 0:03:01.5]} 6... e5 {[%clk 0:02:23.3]} 7.
Nb3 {[%clk 0:03:02.6]} 7... Be6 {[%clk 0:02:20.7]} 8. f3 {[%clk 0:03:03.3]} 8...
Nbd7 {[%clk 0:02:21.3]} 9. Qd2 {[%clk 0:03:04.1]} 9... b5 {[%clk 0:02:22.3]} 10.
g4 {[%clk 0:02:59.1]} 10... b4 {[%clk 0:02:21]} 11. Na4 {[%clk 0:02:49.7]} 11...
h6 {[%clk 0:02:07.3]} 12. h4 {[%clk 0:02:48.5]} 12... d5 {[%clk 0:01:54]} 13.
exd5 {[%clk 0:02:38.7]} 13... Nxd5 {[%clk 0:01:29.8]} 14. O-O-O {[%clk
0:02:36.1]} 14... Qc7 {[%clk 0:01:20.4]} 15. Bd3 {[%clk 0:02:17.9]} 15... Nxe3
{[%clk 0:00:53.4]} 16. Qxe3 {[%clk 0:02:16.3]} 16... Be7 {[%clk 0:00:46.6]} 17.
Kb1 {[%clk 0:02:08.1]} 17... O-O {[%clk 0:00:38.1]} 18. g5 {[%clk 0:02:07.1]}
18... h5 {[%clk 0:00:38.5]} 19. g6 {[%clk 0:01:33.4]} 19... Qc6 {[%clk
0:00:37.9]} 20. gxf7+ {[%clk 0:01:26.8]} 20... Bxf7 {[%clk 0:00:26.1]} 21. Rhg1
{[%clk 0:00:41.3]} 21... Qxa4 {[%clk 0:00:20.2]} 22. Qh6 {[%clk 0:00:40.4]} 1-0

[Event "*** Titled Tuesday 3|2 Blitz"]
[Site "Chess.com"]
[Date "2015.11.03"]
[Round "2"]
[White "VovAn1991"]
[Black "GMHess"]
[Result "1-0"]
[WhiteElo "2466"]
[BlackElo "2431"]
[TimeControl "180+2"]
[EndTime "11:21:06 PST"]
[Termination "VovAn1991 won by resignation"]

1. e4 {[%clk 0:03:01.9]} 1... e5 {[%clk 0:02:54]} 2. Nf3 {[%clk 0:03:02.4]} 2...
Nc6 {[%clk 0:02:55.2]} 3. Bc4 {[%clk 0:03:03.5]} 3... Bc5 {[%clk 0:02:55.2]} 4.
O-O {[%clk 0:03:04.3]} 4... Nf6 {[%clk 0:02:56.2]} 5. d3 {[%clk 0:03:05.4]} 5...
a6 {[%clk 0:02:56.8]} 6. Nbd2 {[%clk 0:03:02]} 6... Ba7 {[%clk 0:02:52.4]} 7. h3
{[%clk 0:03:01.4]} 7... h6 {[%clk 0:02:53.3]} 8. Re1 {[%clk 0:03:00.2]} 8... d6
{[%clk 0:02:49.5]} 9. c3 {[%clk 0:03:00.7]} 9... g5 {[%clk 0:02:13.7]} 10. d4
{[%clk 0:02:32.3]} 10... Qe7 {[%clk 0:01:26.2]} 11. Nf1 {[%clk 0:02:12.7]} 11...
g4 {[%clk 0:01:21.1]} 12. hxg4 {[%clk 0:02:13.6]} 12... Nxg4 {[%clk 0:01:20.5]}
13. Bd5 {[%clk 0:02:01.7]} 13... Rg8 {[%clk 0:01:10.3]} 14. Ng3 {[%clk 0:01:25]}
14... exd4 {[%clk 0:00:37.5]} 15. cxd4 {[%clk 0:01:15.1]} 15... Nxd4 {[%clk
0:00:31.8]} 16. Nxd4 {[%clk 0:00:53.6]} 16... Qf6 {[%clk 0:00:28.7]} 17. Ngf5
{[%clk 0:00:46.5]} 17... Bxf5 {[%clk 0:00:14.5]} 18. exf5+ {[%clk 0:00:45.9]}
18... Kd8 {[%clk 0:00:07.3]} 19. Be3 {[%clk 0:00:42.5]} 19... Nxe3 {[%clk
0:00:03.5]} 20. fxe3 {[%clk 0:00:42.2]} 20... Rg3 {[%clk 0:00:04.4]} 21. Bf3
{[%clk 0:00:24]} 21... c6 {[%clk 0:00:02.9]} 22. Rc1 {[%clk 0:00:21.9]} 22...
Kd7 {[%clk 0:00:03.7]} 23. Nxc6 {[%clk 0:00:20.7]} 23... bxc6 {[%clk 0:00:04]}
24. Bxc6+ {[%clk 0:00:21]} 24... Kd8 {[%clk 0:00:05.2]} 25. Bxa8 {[%clk
0:00:20.9]} 25... Rxe3 {[%clk 0:00:06.2]} 26. Rxe3 {[%clk 0:00:21.1]} 26...
Bxe3+ {[%clk 0:00:08.1]} 27. Kf1 {[%clk 0:00:22.6]} 27... Qxf5+ {[%clk
0:00:09.4]} 28. Bf3 {[%clk 0:00:22]} 28... Qb5+ {[%clk 0:00:10.7]} 29. Ke1
{[%clk 0:00:20.7]} 29... Qb4+ {[%clk 0:00:10.5]} 30. Rc3 {[%clk 0:00:21.3]}
30... Qh4+ {[%clk 0:00:11.3]} 31. Ke2 {[%clk 0:00:21.6]} 31... Qf2+ {[%clk
0:00:12.3]} 32. Kd3 {[%clk 0:00:23]} 32... Bb6 {[%clk 0:00:11.3]} 33. Qe2 {[%clk
0:00:22.6]} 33... Qg1 {[%clk 0:00:11.8]} 34. Kc2 {[%clk 0:00:20.6]} 1-0